bitfinex/quotes_ETHUSD_20260227
["timestamp","ask_amount","ask_price","bid_price","bid_amount"]
[1772215359568,3.40601614,1932.5,1931.6,1.29532881]
[1772215359756,1.293728,1932.4,1931.6,1.29532881]
[1772215360514,1.29339334,1932.9,1931.7,0.45682514]
[1772215361266,2.47439334,1932.9,1931.7,0.45682514]
[1772215361564,2.47439334,1932.9,1931.9,0.45682514]
[1772215361997,2.47439334,1932.9,1932.0,1.29399585]
[1772215362781,2.47439334,1932.9,1932.0,1.75082099]
[1772215363009,1.29339334,1932.9,1932.1,0.45682514]
[1772215364109,0.00153886,1933.0,1932.2,1.29386191]
[1772215365094,0.00153886,1933.0,1932.2,1.75068705]
[1772215365299,0.00153886,1933.0,1932.3,0.45682514]
[1772215366308,0.00153886,1933.0,1932.4,1.75055314]
[1772215366492,0.00153886,1933.0,1932.5,0.45682514]
[1772215366691,0.00153886,1933.0,1932.6,0.45682514]
[1772215366888,7.72235255,1934.0,1932.6,0.45682514]
[1772215366889,5.17125493,1933.8,1932.6,0.45682514]
[1772215367283,8.57727107,1933.8,1932.6,0.45682514]
[1772215367489,9.05561184,1933.8,1932.6,0.45682514]
[1772215367695,9.05561184,1933.8,1932.7,1.173]
[1772215368286,9.05561184,1933.8,1932.7,1.62982514]
[1772215368610,9.05561184,1933.8,1932.8,1.29346026]
[1772215369715,0.47834077,1933.7,1932.7,1.75140001]
[1772215369919,0.47834077,1933.7,1932.7,1.29457487]
[1772215370115,3.40601614,1933.5,1932.7,1.29457487]
[1772215370302,1.184,1933.4,1932.7,1.29457487]
[1772215370497,1.184,1933.4,1932.7,0.0011]
[1772215370719,1.29312574,1933.3,1932.7,0.0011]
[1772215371117,3.40601614,1933.2,1932.5,0.0011]
[1772215371306,3.88435691,1933.2,1932.5,0.0011]
[1772215372306,0.47834077,1933.1,1932.5,0.0011]
[1772215372505,1.184,1933.0,1932.5,0.0011]
[1772215372729,1.29339334,1932.9,1932.5,0.0011]
[1772215373327,4.69940948,1932.9,1932.4,0.0011]
[1772215373526,1.29339334,1932.9,1932.4,0.0011]
[1772215374112,2.47737535,1933.0,1932.4,0.0011]
[1772215374353,1.186,1933.3,1932.4,0.45792514]
[1772215374834,1.186,1933.3,1932.5,1.7504862]
[1772215374835,2.47917803,1933.3,1932.5,1.7504862]
[1772215375203,6.36353494,1933.3,1932.4,5.17574424]
[1772215375409,6.36353494,1933.3,1932.4,1.29478559]
[1772215376852,1.29317803,1933.3,1932.4,0.45792514]
[1772215377018,2.47917803,1933.3,1932.4,0.45792514]
[1772215378158,1.186,1933.6,1932.4,0.45792514]
[1772215378365,5.07035691,1933.6,1932.6,0.45682514]
[1772215378656,0.47834077,1933.5,1932.6,0.45682514]
[1772215378863,1.29305886,1933.4,1932.6,1.75039264]
[1772215380166,1.29305886,1933.4,1932.6,0.45682514]
[1772215380456,1.29305886,1933.4,1932.6,1.75039849]
[1772215381897,1.29305886,1933.4,1932.5,0.0011]
[1772215381898,3.88435691,1933.1,1932.5,0.0011]
[1772215382074,4.59201614,1933.1,1932.5,1.2947499]
[1772215382269,4.59201614,1933.1,1932.5,0.0011]
[1772215382876,1.186,1933.1,1932.5,1.29475947]
[1772215383288,2.47926897,1933.1,1932.5,1.29475947]
[1772215384463,1.186,1933.1,1932.5,1.29475947]
[1772215384669,1.29325095,1933.2,1932.6,0.45682514]
[1772215385703,5.1726798,1933.3,1932.6,1.75037679]
[1772215387371,1.29310524,1933.4,1932.6,1.75037679]
[1772215387603,1.29310524,1933.4,1932.7,0.45682514]
[1772215387792,1.29310524,1933.4,1932.8,1.29346026]
[1772215388202,0.47834077,1932.9,1932.4,0.0011]
[1772215388512,1.189,1932.8,1932.1,0.45682514]
[1772215388802,1.66734077,1932.8,1932.0,1.29548717]
[1772215389171,1.66734077,1932.8,1932.1,1.29389874]
[1772215390190,1.77459929,1932.7,1932.0,0.00153886]
[1772215390384,3.88708825,1932.6,1932.0,0.00153886]
[1772215392199,1.29366106,1932.5,1932.0,0.00153886]
[1772215392392,1.19,1932.4,1932.0,0.00153886]
[1772215392790,1.19,1932.4,1931.6,0.0011]
[1772215393807,3.40601614,1932.3,1931.6,0.0011]
[1772215394215,1.29386191,1932.2,1931.6,0.0011]
[1772215394729,0.00153886,1933.0,1931.7,0.49609154]
[1772215395020,0.00153886,1933.0,1932.2,0.49499154]
[1772215395021,0.00253886,1933.0,1932.2,0.49499154]
[1772215395222,1.29592396,1933.0,1932.4,0.49499154]
[1772215395722,0.00253886,1933.0,1932.4,0.49499154]
[1772215397339,3.40601614,1932.9,1932.2,0.49499154]
[1772215397627,0.00253886,1933.0,1932.2,0.49499154]
[1772215398696,0.48361097,1933.0,1931.9,0.49499154]
[1772215398907,0.48361097,1933.0,1931.9,1.78905298]
[1772215399328,1.29339334,1932.9,1931.9,1.78905298]
[1772215399536,1.191,1932.8,1931.9,1.78905298]
[1772215400019,3.40601614,1932.7,1931.9,1.78905346]
[1772215400322,3.40601614,1932.7,1931.8,0.49499154]
[1772215401399,5.17437648,1932.7,1931.9,1.29406283]
[1772215402027,5.17437648,1932.7,1931.8,1.78908286]
[1772215402523,2.4382651,1932.6,1931.8,0.49499154]
[1772215402908,2.4382651,1932.6,1931.8,1.78912133]
[1772215403127,2.4382651,1932.6,1931.8,0.49499154]
[1772215403426,2.4382651,1932.6,1931.6,0.0011]
[1772215403427,2.4382651,1932.0,1931.6,0.0011]
[1772215404125,1.29392888,1932.1,1931.6,0.0011]
[1772215405317,1.29406283,1931.9,1931.4,0.0011]
[1772215405631,2.4382651,1932.1,1931.4,0.0011]
[1772215405835,2.4382651,1931.9,1931.4,0.0011]
[1772215406009,2.4382651,1931.9,1931.2,0.0011]
[1772215406010,4.11233721,1931.9,1931.2,0.0011]
[1772215406736,4.11233721,1931.9,1931.7,0.0011]
[1772215406914,4.11233721,1931.9,1931.2,0.0011]
[1772215407434,1.29412982,1931.8,1931.2,0.0011]
[1772215407609,1.29412982,1931.8,1931.2,0.49609154]
[1772215407809,1.29412982,1931.8,1931.5,0.0011]
[1772215409425,2.48810869,1931.9,1931.5,0.0011]
[1772215411132,4.92637379,1931.9,1931.2,0.0011]
[1772215412563,2.4382651,1931.5,1931.0,0.00153886]
[1772215412870,1.2,1931.6,1931.0,0.00153886]
[1772215413430,3.73259593,1931.5,1931.0,0.00153886]
[1772215413859,2.4382651,1931.3,1930.8,0.49499154]
[1772215414045,2.4382651,1931.1,1930.6,0.49499154]
[1772215414349,2.91933721,1931.4,1930.6,0.49499154]
[1772215416146,1.29446486,1931.3,1930.4,0.49499154]
[1772215417255,2.4382651,1931.7,1930.4,0.49499154]
[1772215417559,2.49512982,1931.8,1930.6,0.49499154]
[1772215417751,2.49512982,1931.8,1930.8,0.49499154]
[1772215418132,2.97620193,1931.8,1930.9,1.78972456]
[1772215418657,2.49512982,1931.8,1931.0,0.46010228]
[1772215419227,1.29412982,1931.8,1931.0,0.46010228]
[1772215419646,1.29412982,1931.8,1931.0,1.62010228]
[1772215419835,1.29512982,1931.8,1931.0,0.46010228]
[1772215420050,0.001,1931.8,1931.2,0.46987523]
[1772215420438,0.00153886,1932.0,1931.3,0.46987523]
[1772215421868,0.00153886,1932.0,1931.4,0.46987523]
[1772215422334,0.00153886,1932.0,1931.5,1.29433083]
[1772215422534,0.00153886,1932.0,1931.5,1.76420606]
[1772215423660,0.00153886,1932.0,1931.6,0.46987523]
[1772215424472,0.00153886,1932.0,1931.7,0.46987523]
[1772215424969,1.77256994,1932.9,1931.9,0.46987523]
[1772215425342,1.29444336,1932.9,1932.1,0.46987523]
[1772215425867,2.4382651,1932.7,1931.7,0.46987523]
[1772215426047,0.47812658,1932.8,1931.8,1.16]
[1772215426359,3.73270846,1932.9,1931.9,0.46987523]
[1772215426360,1.29444336,1932.9,1931.9,0.46987523]
[1772215426561,1.29444336,1932.9,1932.3,0.46987523]
[1772215426562,0.001,1932.9,1932.3,0.46987523]
[1772215426738,0.001,1932.9,1932.3,1.62987523]
[1772215426939,0.001,1932.9,1932.3,0.46987523]
[1772215427159,0.001,1932.9,1932.3,1.62987523]
[1772215427646,0.001,1932.9,1932.3,1.16]
[1772215427843,0.001,1932.9,1932.4,0.46987523]
[1772215428764,0.001,1932.9,1932.4,1.76354713]
[1772215429186,0.001,1932.9,1932.5,0.46987523]
[1772215429337,0.001,1932.9,1932.2,3.19233058]
[1772215429681,0.47912658,1932.9,1932.2,1.63087523]
[1772215429888,0.47812658,1932.8,1931.9,0.46987523]
[1772215430075,0.47812658,1932.6,1931.8,1.29412982]
[1772215430573,0.47812658,1932.6,1931.8,1.76400505]
[1772215430978,1.29366106,1932.5,1931.8,1.76400505]
[1772215431179,1.29366106,1932.5,1931.8,2.92400505]
[1772215432077,1.29366106,1932.5,1931.9,0.47097523]
[1772215432922,5.17460505,1932.6,1931.9,0.47097523]
[1772215433209,5.65273163,1932.6,1931.9,0.47097523]
[1772215433379,5.65273163,1932.6,1931.9,0.0011]
[1772215433777,5.65273163,1932.6,1931.9,1.29515691]
[1772215434108,5.65273163,1932.6,1931.9,0.0011]
[1772215434498,1.29451323,1932.8,1932.0,0.46987523]
[1772215434695,1.29451323,1932.8,1932.2,0.46987523]
[1772215434885,0.001,1932.8,1932.4,1.293728]
[1772215437790,0.001,1932.8,1932.4,0.46987523]
[1772215438183,0.001,1932.9,1932.6,0.46987523]
[1772215439810,0.001,1932.9,1932.7,1.29352718]
[1772215440335,0.47912658,1932.9,1932.2,1.63387523]
[1772215440499,0.001,1932.9,1932.3,0.46987523]
[1772215440696,0.47912658,1932.9,1932.1,1.29392888]
[1772215440901,0.47912658,1932.9,1932.1,1.76380411]
[1772215441242,0.47912658,1932.9,1932.2,1.164]
[1772215441798,0.47912658,1932.9,1932.1,1.76380411]
[1772215442105,0.47812658,1932.6,1931.9,1.76502791]
[1772215442313,1.29346026,1932.8,1932.0,0.46987523]
[1772215442495,1.77158684,1932.8,1932.0,0.46987523]
[1772215443096,0.47812658,1932.7,1932.0,1.63387523]
[1772215443332,2.91639168,1932.7,1931.9,1.29515268]
[1772215443635,0.47812658,1932.6,1931.9,2.45915268]
[1772215443921,1.77177529,1932.6,1931.9,2.92902791]
[1772215444095,1.29348319,1932.8,1932.0,0.46987523]
[1772215444295,0.001,1932.9,1932.2,0.46987523]
[1772215444494,0.001,1932.9,1932.4,0.46987523]
[1772215445224,0.001,1932.9,1932.4,1.63287523]
[1772215445398,0.001,1932.9,1932.5,0.46987523]
[1772215445847,0.001,1932.8,1932.5,0.46987523]
[1772215446136,0.00253886,1933.0,1932.5,0.46987523]
[1772215446137,0.00253886,1933.0,1932.7,0.46987523]
[1772215446833,0.00253886,1933.0,1932.9,0.46987523]
[1772215447034,0.00253886,1933.0,1932.8,1.164]
[1772215447723,0.00253886,1933.0,1932.8,1.63387523]
[1772215448342,0.00253886,1933.0,1932.9,1.29339334]
[1772215448910,0.00253886,1933.0,1932.9,1.76326857]
[1772215449939,0.00253886,1933.0,1932.9,2.93126857]
[1772215450341,0.00253886,1933.0,1932.9,2.46139334]
[1772215452923,1.29299198,1933.5,1932.9,2.46139334]
[1772215453121,1.76969974,1933.8,1932.9,2.95291931]
[1772215453336,1.76969974,1933.8,1933.0,0.49152597]
[1772215453538,0.001,1933.8,1933.0,0.49152597]
[1772215453955,0.47587886,1933.7,1932.9,1.29339334]
[1772215454145,0.47587886,1933.7,1933.1,1.172]
[1772215454351,0.47587886,1933.7,1933.2,1.29319263]
[1772215454549,1.7687529,1933.7,1933.2,1.29319263]
[1772215454732,0.47587886,1933.5,1933.0,1.172]
[1772215455157,0.47587886,1933.5,1932.9,1.172]
[1772215455460,1.76970143,1933.8,1933.0,0.49152597]
[1772215456673,0.47587886,1933.7,1933.0,1.78480039]
[1772215456849,1.29382257,1933.8,1933.1,1.66252597]
[1772215457042,1.29382257,1933.8,1933.1,0.49152597]
[1772215457252,1.29382257,1933.8,1933.2,1.171]
[1772215458132,0.001,1933.7,1933.2,1.171]
[1772215458749,0.001,1933.7,1933.2,1.29319263]
[1772215458947,0.001,1933.7,1933.2,2.46419263]
[1772215459547,0.001,1933.7,1933.2,2.45888406]
[1772215460268,0.001,1933.7,1933.2,1.171]
[1772215460269,0.47687886,1933.7,1933.2,1.171]
[1772215460666,0.47687886,1933.7,1933.1,1.29323132]
[1772215460969,0.001,1933.7,1933.1,2.95675729]
[1772215461170,1.29386021,1933.7,1933.1,2.95675729]
[1772215461542,0.001,1933.7,1933.1,2.95675729]
[1772215461869,0.001,1933.7,1933.2,0.49152597]
[1772215462449,0.001,1933.8,1933.2,0.49152597]
[1772215462648,0.00253886,1934.0,1933.4,0.49152597]
[1772215462848,0.00253886,1934.0,1933.6,0.49152597]
[1772215464255,0.00253886,1934.0,1933.7,1.174]
[1772215465075,0.00253886,1934.0,1933.6,1.174]
[1772215465978,0.47841772,1934.0,1933.2,1.29315791]
[1772215466154,0.47587886,1933.7,1933.0,1.175]
[1772215467074,1.29292511,1933.6,1933.0,2.46828743]
[1772215467573,5.17129126,1933.8,1933.0,2.9598134]
[1772215467767,1.29272454,1933.9,1933.1,0.49152597]
[1772215469068,1.7686034,1933.9,1933.1,0.49152597]
[1772215469677,0.00253886,1934.0,1933.3,0.49152597]
[1772215469882,0.00253886,1934.0,1933.4,1.174]
[1772215470077,0.00253886,1934.0,1933.4,1.66552597]
[1772215470297,0.00253886,1934.0,1933.5,0.49152597]
[1772215470492,1.29519992,1934.0,1933.5,0.49152597]
[1772215470701,0.47587886,1933.8,1933.2,0.0011]
[1772215471698,0.47587886,1933.6,1933.2,0.0011]
[1772215473399,0.47587886,1933.5,1933.0,0.0011]
[1772215473770,1.76893772,1933.4,1933.0,0.0011]
[1772215474300,1.29305886,1933.4,1933.0,0.0011]
[1772215474504,1.76893772,1933.4,1933.0,0.0011]
[1772215474668,0.47587886,1933.3,1932.5,1.172]
[1772215475496,0.47587886,1933.3,1932.6,1.172]
[1772215476179,1.29319263,1933.2,1932.6,1.172]
[1772215476865,1.29319263,1933.2,1932.4,1.172]
[1772215476866,1.76907149,1933.2,1932.4,1.172]
[1772215477808,3.88468324,1933.0,1932.2,1.29380952]
[1772215477996,0.47587886,1932.9,1932.1,2.46588406]
[1772215478185,1.76933912,1932.8,1932.1,2.46588406]
[1772215478700,5.1734133,1933.0,1932.1,2.9643616]
[1772215479003,1.29330003,1933.1,1932.2,0.52323184]
[1772215479801,1.29330003,1933.1,1932.2,0.49847754]
[1772215480105,1.7603641,1933.1,1932.2,0.49847754]
[1772215480581,1.7603641,1933.1,1932.3,1.29379495]
[1772215481799,1.7603641,1933.1,1932.3,1.74651557]
[1772215483406,1.29330003,1933.1,1932.5,0.45272062]
[1772215484217,1.29319263,1933.2,1932.5,0.45272062]
[1772215484920,1.29319263,1933.2,1932.5,1.74631646]
[1772215486232,1.74661103,1933.2,1932.5,1.74631646]
[1772215486611,1.74661103,1933.2,1932.6,1.171]
[1772215487010,0.4534184,1933.1,1932.6,1.171]
[1772215490011,1.74671204,1933.1,1932.6,2.46455404]
[1772215490638,1.74671204,1933.1,1932.6,1.29355404]
[1772215490841,1.74671204,1933.1,1932.6,2.46555404]
[1772215492727,0.4534184,1933.0,1932.7,1.173]
[1772215492949,0.4534184,1933.0,1932.3,1.29486259]
[1772215493248,0.4534184,1933.0,1932.4,1.174]
[1772215493744,0.4534184,1933.0,1932.3,1.29489366]
[1772215493745,0.4534184,1933.0,1932.3,2.46787891]
[1772215494217,0.4534184,1932.8,1932.2,0.0011]
[1772215494657,0.4534184,1932.6,1932.2,0.0011]
[1772215496229,0.4534184,1932.6,1932.3,0.0011]
[1772215496637,1.7471464,1932.4,1932.0,0.00263886]
[1772215496836,1.29366106,1932.5,1932.0,0.00263886]
[1772215497225,1.29366106,1932.5,1932.0,0.45535948]
[1772215498855,1.29366106,1932.5,1932.0,1.74931763]
[1772215499035,1.74707946,1932.5,1932.0,1.29659701]
[1772215499240,0.4534184,1932.4,1932.0,0.00263886]
[1772215500245,5.62794507,1932.6,1932.0,0.00263886]
[1772215500448,1.74701554,1932.6,1932.0,1.74932383]
[1772215500646,1.29434237,1933.0,1932.2,0.45272062]
[1772215500845,0.001,1933.0,1932.4,1.74644862]
[1772215501168,0.001,1933.0,1932.5,0.45272062]
[1772215501745,0.4544184,1933.0,1932.4,1.293728]
[1772215502068,0.4534184,1932.8,1932.2,2.46782429]
[1772215502973,0.4534184,1932.6,1932.1,1.175]
[1772215503145,0.4534184,1932.6,1932.0,1.17763886]
[1772215503345,0.4534184,1932.6,1932.0,0.00263886]
[1772215503543,0.4534184,1932.6,1932.0,1.74934776]
[1772215503875,0.4534184,1932.6,1932.0,1.29663449]
[1772215504443,0.4534184,1932.6,1932.0,0.00263886]
[1772215504848,1.29366106,1932.5,1932.0,0.00263886]
[1772215505045,1.74707946,1932.5,1932.0,0.00263886]
[1772215505262,0.4534184,1932.4,1932.0,0.00263886]
[1772215506673,1.29366106,1932.5,1932.0,0.00263886]
[1772215507957,1.29366106,1932.5,1932.1,0.0011]
[1772215508452,0.4534184,1932.4,1932.0,0.00263886]
[1772215508865,1.74721335,1932.3,1931.7,0.0011]
[1772215509064,3.86222278,1932.0,1931.3,6.01674315]
[1772215509250,3.86222278,1932.0,1931.3,6.46946377]
[1772215509450,0.4534184,1932.0,1931.4,0.45272062]
[1772215509650,0.4534184,1932.0,1931.2,1.174]
[1772215509651,0.4534184,1931.9,1931.2,1.174]
[1772215509867,0.4534184,1931.9,1931.2,2.92125251]
[1772215510080,3.89669345,1932.0,1931.3,0.46977393]
[1772215510380,0.48788907,1931.9,1931.3,0.46977393]
[1772215510968,0.48788907,1931.9,1931.2,2.46853189]
[1772215511168,1.29412982,1931.8,1931.2,2.46853189]
[1772215511969,1.78175098,1932.2,1931.3,0.46977393]
[1772215512748,0.48788907,1932.1,1931.3,0.46977393]
[1772215512953,0.48788907,1931.9,1931.1,1.76431594]
[1772215513256,1.78201889,1931.8,1931.2,2.46847938]
[1772215513462,1.78201889,1931.8,1931.1,2.93831997]
[1772215513868,3.40880438,1931.3,1930.6,0.46977393]
[1772215514303,3.89669345,1931.3,1930.5,0.0011]
[1772215514501,3.89669345,1931.3,1930.6,1.174]
[1772215514667,3.89669345,1931.3,1930.6,2.46891107]
[1772215515269,1.29453189,1931.2,1930.6,1.174]
[1772215515775,1.29453189,1931.2,1930.6,2.46890529]
[1772215516387,1.29453189,1931.2,1930.5,1.29603883]
[1772215516574,1.78242096,1931.2,1930.5,2.47003883]
[1772215516906,1.78242096,1931.2,1930.5,1.29604917]
[1772215517113,1.78242096,1931.2,1930.5,1.1751]
[1772215517276,5.19135942,1931.0,1930.4,0.0011]
[1772215517618,1.29465074,1931.1,1930.4,0.47087393]
[1772215518071,2.9872199,1931.5,1930.4,0.47087393]
[1772215518478,0.48788907,1931.4,1930.5,1.64377393]
[1772215519496,1.78235393,1931.3,1930.6,1.29493421]
[1772215520072,1.78235393,1931.3,1930.6,2.46793421]
[1772215520507,0.48788907,1931.2,1930.5,2.46796109]
[1772215520678,0.48788907,1931.2,1930.5,1.173]
[1772215520878,0.48788907,1931.2,1930.5,1.1741]
[1772215521328,0.48788907,1931.2,1930.5,0.0011]
[1772215521638,1.29459893,1931.1,1930.5,0.0011]
[1772215521940,1.29459893,1931.1,1930.5,0.47087393]
[1772215523014,5.66625997,1931.2,1930.5,0.47087393]
[1772215523015,1.29433083,1931.5,1930.5,0.47087393]
[1772215523216,1.78206477,1931.8,1930.5,0.47087393]
[1772215523519,0.48788907,1931.7,1930.7,0.46977393]
[1772215523716,1.29426382,1931.6,1930.9,0.46977393]
[1772215524018,1.78212992,1931.7,1930.9,0.46977393]
[1772215524701,1.29424085,1931.7,1930.9,0.46977393]
[1772215525901,5.17672701,1931.8,1931.0,1.29466597]
[1772215525902,0.48788907,1931.8,1931.0,1.29466597]
[1772215526102,0.48788907,1931.8,1931.0,1.7644399]
[1772215527318,0.48788907,1931.4,1930.7,1.172]
[1772215528240,1.29446486,1931.3,1930.6,1.76465963]
[1772215528408,1.29446486,1931.3,1930.7,0.46977393]
[1772215528837,1.29446486,1931.3,1930.5,2.46805291]
[1772215528838,2.92793567,1931.1,1930.5,0.0011]
[1772215529057,0.48788907,1931.1,1930.5,0.0011]
[1772215529453,1.29446486,1931.3,1930.6,0.46977393]
[1772215529771,1.78235393,1931.3,1930.7,0.05179467]
[1772215529971,1.78235393,1931.3,1930.5,0.0011]
[1772215529972,2.92793567,1931.0,1930.5,0.0011]
[1772215530268,1.29473302,1930.9,1930.5,0.0011]
[1772215531985,1.78262209,1930.9,1930.4,0.0011]
[1772215532178,1.29486714,1930.7,1930.4,0.0011]
[1772215533278,1.78259725,1931.0,1930.4,0.0011]
[1772215533510,1.78259725,1931.0,1930.5,0.0011]
[1772215533943,2.4400466,1930.8,1930.4,0.0011]
[1772215534141,1.29486714,1930.7,1930.4,0.0011]
[1772215534371,7.61941058,1930.8,1930.4,0.0011]
[1772215534585,1.29480008,1930.8,1930.4,0.0011]
[1772215534744,0.48788907,1930.9,1930.4,0.0011]
[1772215535074,1.29459893,1931.1,1930.4,0.47087393]
[1772215535573,1.7834721,1931.2,1930.4,0.47087393]
[1772215536273,1.7834721,1931.2,1930.5,1.29500129]
[1772215537274,0.001,1931.2,1930.6,0.46977393]
[1772215538380,0.001,1931.2,1930.8,0.46977393]
[1772215538551,0.001,1931.2,1930.7,1.29486714]
[1772215539671,0.001,1931.2,1930.8,0.46985397]
[1772215540501,0.001,1931.2,1930.8,1.76461371]
[1772215541399,0.001,1931.2,1930.8,1.29475974]
[1772215543514,0.001,1931.2,1930.7,1.75078265]
[1772215544777,2.92989517,1931.2,1930.6,1.29486774]
[1772215544988,0.48984857,1931.2,1930.6,2.46986774]
[1772215545497,0.48984857,1931.2,1930.6,1.29486774]
[1772215545710,0.48984857,1931.1,1930.6,1.29486774]
[1772215546073,0.48984857,1931.1,1930.5,1.29609817]
[1772215546482,0.001,1931.1,1930.6,0.45596254]
[1772215547099,0.001,1931.1,1930.7,1.29486714]
[1772215547296,0.001,1931.1,1930.7,1.75082968]
[1772215548903,0.001,1931.1,1930.7,1.29486714]
[1772215549079,0.001,1931.1,1930.7,2.47286714]
[1772215550307,0.001,1931.1,1930.7,1.29486714]
[1772215550608,0.001,1931.1,1930.7,2.47386714]
[1772215551783,0.001,1931.1,1930.7,2.92982968]
[1772215551987,1.78313726,1931.6,1930.8,0.45596254]
[1772215552384,0.48884857,1931.5,1930.8,0.45596254]
[1772215554205,1.78324641,1931.4,1930.8,1.75070005]
[1772215554392,1.78324641,1931.4,1930.8,2.93070005]
[1772215554795,0.48884857,1931.3,1930.7,1.29483534]
[1772215555004,0.48884857,1931.3,1930.7,2.47483534]
[1772215556131,0.48884857,1931.3,1930.7,1.18]
[1772215556416,1.78334302,1931.3,1930.8,1.29480008]
[1772215556588,0.48884857,1931.2,1930.8,1.29480008]
[1772215556793,1.78328898,1931.4,1930.8,1.29480008]
[1772215557492,1.78325138,1931.4,1930.8,1.75076262]
[1772215557698,0.001,1931.2,1930.8,1.75076262]
[1772215559293,0.001,1931.2,1930.8,2.93376262]
[1772215560711,0.001,1931.2,1930.9,0.45596254]
[1772215560909,1.69484857,1931.6,1930.9,0.45596254]
[1772215561405,1.206,1931.6,1931.1,0.45596254]
[1772215561610,1.29420257,1931.7,1931.1,0.45596254]
[1772215561809,0.49038743,1932.0,1931.1,0.45596254]
[1772215562111,0.00153886,1932.0,1931.1,0.45596254]
[1772215562283,0.48884857,1931.6,1930.9,0.45596254]
[1772215562486,0.48884857,1931.6,1931.0,1.184]
[1772215562689,0.48884857,1931.6,1931.1,1.29459893]
[1772215562887,0.48884857,1931.1,1930.6,0.0011]
[1772215563083,0.48884857,1931.1,1930.6,1.29603301]
[1772215563283,1.69484857,1931.5,1930.7,0.45596254]
[1772215563509,0.48884857,1931.4,1930.7,0.45596254]
[1772215564512,1.78312734,1931.6,1930.7,0.45596254]
[1772215564720,1.29424109,1931.7,1930.9,0.45596254]
[1772215564920,1.29424109,1931.7,1931.1,0.45596254]
[1772215565089,1.78308966,1931.7,1931.1,0.45596254]
[1772215565295,0.48884857,1931.6,1931.0,1.184]
[1772215565494,0.48884857,1931.6,1931.0,1.63996254]
[1772215565912,1.205,1931.9,1931.1,0.45596254]
[1772215566214,0.49038743,1932.0,1931.1,0.45596254]
[1772215566415,1.78438486,1932.0,1931.1,0.45596254]
[1772215566919,0.00153886,1932.0,1931.4,0.45596254]
[1772215567086,0.00153886,1932.0,1931.6,0.45596254]
[1772215568818,0.00153886,1932.0,1931.7,1.29419682]
[1772215570097,0.49299328,1932.0,1931.4,0.4557095]
[1772215570297,0.001,1931.8,1931.4,1.6397095]
[1772215571045,0.001,1931.8,1931.5,1.29433083]
[1772215572923,0.001,1931.8,1931.4,2.93404473]
[1772215573245,0.001,1931.8,1931.5,1.188]
[1772215575000,0.001,1931.8,1931.6,1.29426382]
[1772215575399,0.49245442,1932.7,1931.8,0.4557095]
[1772215575722,0.49245442,1932.7,1932.1,0.4557095]
[1772215575905,1.78599747,1932.7,1932.1,0.4557095]
[1772215576105,0.49145442,1932.6,1931.8,0.4557095]
[1772215576301,0.49145442,1932.4,1931.8,1.19]
[1772215576714,0.49145442,1932.4,1931.6,1.74997332]
[1772215576917,0.49145442,1932.4,1931.7,1.19]
[1772215577220,1.78519356,1932.4,1931.8,1.74983932]
[1772215578141,1.78518591,1932.4,1931.8,1.74983932]
[1772215579446,1.78518591,1932.4,1931.8,1.29412982]
[1772215579740,0.49145442,1932.3,1931.8,2.48512982]
[1772215580039,0.49145442,1932.3,1931.8,1.191]
[1772215580213,0.49145442,1932.3,1931.8,2.48512795]
[1772215580416,0.49145442,1932.3,1931.8,1.191]
[1772215580639,2.93150102,1932.3,1931.6,1.29424673]
[1772215580843,0.49145442,1932.2,1931.7,1.191]
[1772215581230,1.29392888,1932.1,1931.6,2.48624673]
[1772215581427,1.7853833,1932.1,1931.6,2.48624673]
[1772215581631,1.7853833,1932.1,1931.6,1.29424673]
[1772215581831,0.49145442,1932.0,1931.6,1.192]
[1772215582531,1.2938519,1932.3,1931.7,0.4557095]
[1772215582931,1.2938519,1932.3,1931.8,0.0011]
[1772215583450,1.78630632,1932.3,1931.8,1.29522982]
[1772215583948,0.001,1932.3,1931.9,0.4557095]
[1772215584430,0.001,1932.3,1932.0,1.192]
[1772215584628,1.78598438,1932.7,1932.1,0.4557095]
[1772215585226,1.78598438,1932.7,1931.8,1.29522982]
[1772215585227,1.29366106,1932.5,1931.8,1.75093932]
[1772215585446,0.49145442,1932.4,1931.8,0.0011]
[1772215585640,0.49145442,1932.4,1931.8,1.29522024]
[1772215586247,0.49145442,1932.4,1931.8,0.0011]
[1772215586642,0.49145442,1932.4,1931.8,1.2952288]
[1772215587750,1.78524937,1932.3,1931.8,0.0011]
[1772215588250,0.49145442,1932.2,1931.8,0.0011]
[1772215588839,0.49145442,1932.2,1931.7,0.0011]
[1772215589140,0.49145442,1932.0,1931.5,0.0011]
[1772215589856,1.78551725,1931.9,1931.5,0.0011]
[1772215590760,0.49145442,1931.9,1931.5,0.0011]
[1772215591829,1.78558424,1931.8,1931.5,0.0011]
[1772215592157,1.78546546,1932.0,1931.5,0.0011]
[1772215593250,0.49145442,1932.0,1931.5,0.0011]
[1772215596226,1.29393057,1932.1,1931.5,0.4568095]
[1772215596744,0.49145442,1932.1,1931.6,0.0011]
[1772215597063,0.001,1931.9,1931.6,0.0011]
[1772215598623,0.49245442,1931.9,1931.6,0.0011]
[1772215598827,0.49245442,1931.9,1931.3,0.0011]
[1772215598828,0.49145442,1931.8,1931.3,0.0011]
[1772215599553,0.001,1931.9,1931.4,0.45642164]
[1772215600158,0.46774587,1931.9,1931.4,0.45642164]
[1772215600359,0.001,1931.9,1931.5,1.29433083]
[1772215600542,0.001,1931.9,1931.5,1.74706663]
[1772215600939,0.001,1931.9,1931.6,1.6457358]
[1772215601137,1.77023365,1932.3,1931.7,0.4527358]
[1772215602058,0.47639126,1932.2,1931.7,0.4527358]
[1772215602354,0.47639126,1932.2,1931.5,2.94006663]
[1772215602561,1.77032014,1932.1,1931.5,2.94006663]
[1772215604568,1.77032014,1932.1,1931.5,2.94106663]
[1772215605666,1.77033286,1932.1,1931.5,2.94106663]
[1772215607761,0.47639126,1932.0,1931.4,1.7470959]
[1772215608334,0.47639126,1932.0,1931.5,1.196]
[1772215608962,0.47639126,1932.0,1931.6,0.0011]
[1772215609758,1.77142411,1932.0,1931.6,0.0011]
[1772215610968,1.77142411,1932.0,1931.5,0.0011]
[1772215610969,0.47639126,1931.9,1931.5,0.0011]
[1772215611136,0.001,1932.0,1931.6,0.4527358]
[1772215611750,0.001,1932.0,1931.6,1.7469669]
[1772215612461,0.001,1932.0,1931.6,0.4527358]
[1772215612643,0.47739126,1932.0,1931.5,1.29537631]
[1772215612849,0.47739126,1932.0,1931.5,1.1991]
[1772215613367,0.47739126,1932.0,1931.5,0.0011]
[1772215613573,1.211,1932.0,1931.5,0.0011]
[1772215613744,1.29412982,1931.8,1931.5,0.0011]
[1772215614062,0.47639126,1931.7,1931.5,0.0011]